{"text_format":"1","workbook":"xlsx","n_sheets":10,"sheets":["Plan1","Informações","Completo","Claro PF","Leader","CCG-BBK-EST","NET","Claro PJ","White Martins","Controle"],"not_rendered":{"charts":0,"images":0,"macros":1,"external_links":0,"defined_names":1,"comments":1,"pivot_tables":0},"unopened":[],"bounds":{"document_bytes":16777216,"sheet_cells":100000,"rows_first":2000,"rows_last":500,"rows_between":2000,"halvings":0,"cell_chars":16384,"cell_head_chars":4096},"cells_cut":0,"cells_raw":0,"read":"whole","date_system":"1900"}

{"sheet":"Plan1","index":0,"n_rows":48,"n_cols":89,"rows_kept":48,"cut":false,"hidden":true,"merged":[[3,65,4,65],[3,67,4,67],[5,65,6,65],[11,42,12,42],[5,67,6,67],[7,82,8,82],[9,82,10,82],[5,60,6,60],[9,60,10,60],[7,60,8,60],[7,72,8,72],[9,74,10,74],[5,54,6,54],[5,58,6,58],[7,74,8,74],[7,56,8,56],[7,58,8,58],[9,56,10,56],[5,74,6,74],[7,67,8,67],[7,70,8,70],[9,81,10,81],[7,65,8,65],[9,51,10,51],[11,49,12,49],[11,46,12,46],[11,47,12,47],[11,44,12,44],[11,37,12,37],[7,51,8,51],[11,33,12,33],[3,68,4,68],[5,68,6,68],[7,68,8,68],[9,68,10,68],[11,68,12,68],[3,61,4,61],[5,61,6,61],[7,61,8,61],[9,61,10,61],[11,61,12,61],[7,54,8,54],[9,54,10,54],[3,56,4,56],[5,56,6,56],[3,44,4,44],[3,46,4,46],[3,49,4,49],[3,70,4,70],[9,70,10,70],[31,51,32,51],[31,58,32,58],[31,60,32,60],[33,56,34,56],[31,53,32,53],[31,56,32,56],[29,53,30,53],[29,60,30,60],[25,58,26,58],[27,56,28,56],[27,58,28,58],[27,60,28,60],[29,56,30,56],[29,58,30,58],[25,60,26,60],[13,54,14,54],[29,67,30,67],[9,53,10,53],[11,54,12,54],[11,53,12,53],[7,53,8,53],[11,51,12,51],[34,45,35,45],[23,36,28,41],[25,51,26,51],[25,53,26,53],[34,37,34,38],[27,51,28,51],[27,53,28,53],[29,51,30,51],[26,45,27,45],[26,46,27,46],[33,51,34,51],[33,53,34,53],[25,56,26,56],[27,63,28,63],[29,63,30,63],[29,65,30,65],[25,67,26,67],[27,65,28,65],[31,65,32,65],[23,71,35,76],[11,58,12,58],[11,56,12,56],[11,60,12,60],[11,84,12,84],[11,72,12,72],[11,79,12,79],[11,74,12,74],[9,79,10,79],[11,82,12,82],[33,58,34,58],[33,60,34,60],[33,65,34,65],[33,67,34,67],[33,63,34,63],[9,58,10,58],[11,75,12,75],[31,63,32,63],[27,67,28,67],[25,63,26,63],[15,60,16,62],[25,65,26,65],[31,67,32,67],[3,16,4,16],[7,42,8,42],[9,40,10,40],[3,39,4,39],[3,35,4,35],[5,35,6,35],[11,86,12,86],[13,86,14,86],[13,63,14,63],[3,63,4,63],[11,63,12,63],[7,79,8,79],[11,65,12,65],[13,65,14,65],[9,65,10,65],[13,68,14,68],[11,70,12,70],[13,70,14,70],[7,63,8,63],[9,84,10,84],[7,77,8,77],[7,75,8,75],[9,67,10,67],[11,81,12,81],[5,49,6,49],[7,44,8,44],[7,40,8,40],[5,37,6,37],[7,46,8,46],[9,46,10,46],[9,49,10,49],[8,22,8,26],[3,30,4,30],[3,22,3,26],[3,32,4,32],[9,37,10,37],[3,37,4,37],[3,40,4,40],[7,33,8,33],[7,32,8,32],[7,47,8,47],[9,47,10,47],[7,39,8,39],[9,39,10,39],[7,49,8,49],[3,47,4,47],[9,44,10,44],[13,30,14,30],[15,30,16,30],[15,22,16,26],[12,18,13,19],[5,47,6,47],[9,42,10,42],[13,33,14,33],[9,35,10,35],[11,39,12,39],[13,46,14,46],[5,44,6,44],[5,46,6,46],[9,33,10,33],[4,24,5,24],[5,39,6,39],[7,37,8,37],[5,30,6,30],[5,32,6,32],[3,33,4,33],[5,33,6,33],[3,42,4,42],[5,40,6,40],[5,42,6,42],[11,32,12,32],[0,1,0,88],[3,51,4,51],[3,53,4,53],[5,51,6,51],[5,53,6,53],[3,19,4,19],[5,19,6,19],[3,58,4,58],[4,23,5,23],[3,60,4,60],[3,72,4,72],[3,74,4,74],[5,70,6,70],[5,77,6,77],[3,75,4,75],[5,75,6,75],[5,72,6,72],[3,82,4,82],[5,82,6,82],[3,88,4,88],[5,86,6,86],[5,88,6,88],[5,63,6,63],[5,16,6,16],[3,81,4,81],[3,84,4,84],[5,79,6,79],[15,33,16,33],[3,54,4,54],[7,88,8,88],[13,80,14,83],[3,77,4,77],[3,86,4,86],[3,79,4,79],[11,77,12,77],[9,75,10,75],[9,72,10,72],[15,52,16,55],[9,63,10,63],[11,67,12,67],[13,67,14,67],[13,44,14,44],[13,35,14,35],[13,51,14,51],[13,40,14,40],[11,35,12,35],[13,37,14,37],[13,47,14,47],[13,88,14,88],[7,2,8,2],[9,86,10,86],[9,88,10,88],[12,2,12,8],[11,88,12,88],[5,84,6,84],[7,81,8,81],[7,86,8,86],[7,84,8,84],[11,40,12,40],[13,39,14,39],[13,42,14,42],[13,56,14,56],[13,49,14,49],[13,53,14,53],[7,35,8,35],[9,30,10,30],[9,32,10,32],[7,19,8,19],[7,30,8,30],[13,32,14,32],[7,16,8,16],[9,16,10,19],[39,25,40,25],[33,11,34,16],[26,13,27,22],[32,20,32,29],[33,37,33,38],[28,31,29,34],[18,86,18,87],[5,81,6,81],[9,77,10,77],[15,80,15,83],[17,52,17,55],[18,33,18,34],[17,38,17,41],[17,45,17,48],[15,45,16,48],[15,38,16,41],[18,15,18,16],[15,15,16,15],[15,32,16,32],[15,35,16,35],[15,16,16,16],[16,17,16,20],[11,30,12,30],[12,14,12,16]]}
[null,"MAPEAMENTO DE ESTAÇÕES RIO 2015"]
[]
[]
[null,null,null,null,null,null,null,null,null,null,null,null,null,null,null,null,"Ramal 4099",117,120,"Ramal 4004",null,null,"FeedBack",null,null,null,null,null,null,null,"Sabrina",1,"Ramal 4068","Ramal 4025",14,"Jocilene",null,"Ana Claudia",15,"Ramal 4646","Ramal 4287",27,"Raquel",null,"Taiane",28,"Ramal 4167",null,40,null,null,null,41,null,null,53,null,null,null,59,null,null,60,null,null,null,71,null,null,72,null,null,null,82,null,null,83,null,null,"Wellington - 018885",93,null,null,94,"Aramary - 018858",null,"Débora - 018859",104,"Ramal 4052"]
[null,null,null,null,null,null,null,null,null,null,null,null,null,null,null,null,null,null,null,null,null,null,121]
[null,null,null,null,null,null,null,null,null,null,null,null,null,null,null,null,null,116,119,null,null,null,null,null,null,null,null,null,null,null,"Istefani",2,"Ramal 4098","Ramal 4704",13,"Marluce",null,"Graciele",16,"Ramal 4758",null,26,"Vazio",null,"Eliana",29,"Ramal 4189",null,39,null,null,null,42,null,null,52,null,null,null,58,null,null,61,null,null,null,70,null,null,73,null,null,null,81,null,null,84,null,null,"Ana Cristina - 018883",92,null,null,95,"Gabriela - 018857",null,"Marilena C. - 018860",103]
[]
[null,122,null,null,null,null,null,null,null,null,null,null,null,null,null,null,null,115,118,"Ramal 4051",null,null,null,null,null,null,null,null,null,null,"Livia",3,"Ramal4694","Ramal 4776",12,"Dayane",null,"Luzia",17,"Ramal 4614","Ramal 4063",25,"Marcos",null,"Leandra",30,"Ramal 4196",null,38,null,null,null,43,null,null,51,null,null,null,57,null,null,62,null,null,null,69,null,null,74,null,null,null,80,null,null,85,null,null,"Denise - 018881",91,null,null,96,"Marcia Costa - 018886",null,"Roberta - 018861",102]
[null,null,null,null,null,null,null,null,null,null,null,null,null,null,null,null,null,null,null,null,null,null,"Multi-Uso"]
[null,null,null,null,null,null,null,null,null,null,null,null,null,null,null,null,"ADM",null,null,null,null,null,null,null,null,null,null,null,null,null,"Debora",4,"Ramal 4788","Ramal 4630",11,"Denise",null,"Flavia",18,"Ramal 4604","Ramal 4042",24,"Ingrid",null,"Ana Fatima",31,"Ramal 4225",null,37,null,null,null,44,null,null,50,null,null,null,56,null,null,63,null,null,null,68,null,null,75,null,null,null,79,null,null,86,null,null,"Rodrigo - 018879",90,null,null,97,"Marilene Andre - 018873",null,"Thiago - 018867",101]
[]
[null,null,null,null,null,null,null,null,null,null,null,null,null,null,null,null,null,null,null,null,null,null,null,null,null,null,null,null,null,null,"Nathalia",5,"Ramal 4764","Ramal 4689",10,"Cristiane",null,"Patrick",19,"Ramal 4665","Ramal 4258",23,"Lidiane",null,"Leticia",32,"Ramal 4255",null,36,null,null,null,45,null,null,49,null,null,null,55,null,null,64,null,null,null,67,null,null,76,null,null,null,78,null,null,87,null,null,"Susana - 018820",89,null,null,98,"Luana Matias - 018872",null,"Màrcia Nasc. - 018870",100]
[null,null,"BANHEIRO",null,null,null,null,null,null,null,null,null,null,null,"ALMOX.",null,null,114,"Ramal 4059"]
[null,null,null,null,null,null,null,null,null,null,null,null,null,null,null,null,null,null,null,null,null,null,null,null,null,null,null,null,null,null,"Camila",6,"Ramal 4649","Ramal 4668",9,"Jessica",null,"Marcus",20,"Ramal 4670","Ramal 4205",22,"Aline",null,"Fransine",33,"Ramal 4076",null,35,null,null,null,46,null,null,48,null,null,null,null,null,null,65,null,null,null,66,null,null,77,null,null,null,null,null,null,null,null,null,null,"88                     Ramal 4018",null,null,null,null,null,"Jonathan",99]
[]
[null,null,null,null,null,null,null,null,null,null,null,null,null,null,113,"Ramal 4083","Vago",null,null,null,null,null,"REUNIÃO",null,null,null,null,null,null,null,"Impressora",7,null,"Ramal 4611",8,"Ana Paula",null,null,"21                    Ramal 4027",null,null,null,null,null,null,"34                   Ramal 4090",null,null,null,null,null,null,"47                  Ramal 4029",null,null,null,null,null,null,null,"54                  Ramal 4082",null,null,null,null,null,null,null,null,null,null,null,null,null,null,null,null,null,null,null,"Erica"]
[null,null,null,null,null,null,null,null,null,null,null,null,null,null,null,null,null,"RH"]
[null,null,null,null,null,null,null,null,null,null,null,null,null,null,null,null,null,null,null,null,null,null,null,null,null,null,null,null,null,null,null,null,null,null,null,null,null,null,"William",null,null,null,null,null,null,"Clayton",null,null,null,null,null,null,"Juliana"]
[null,null,null,null,null,null,null,null,null,null,null,null,null,null,null,null,null,null,null,null,null,null,null,null,null,null,null,null,null,null,null,null,null,"14 PAs",null,null,null,null,null,null,null,"12 Pas",null,null,null,null,null,null,"12 Pas",null,null,null,null,null,null,"12Pas",null,null,null,null,null,null,"12Pas",null,null,null,null,null,null,"12Pas",null,null,null,null,null,null,"10Pas",null,null,null,null,null,null,"10Pas",null,null,"6 Pas"]
[]
[null,null,null,null,null,null,"HALL DE ENTRADA"]
[]
[]
[null,null,"ELEVADORES",null,null,null,null,null,null,null,null,null,null,null,null,null,null,null,null,null,null,null,null,null,null,null,null,null,null,null,null,null,null,null,null,null,"CPD",null,null,null,null,null,null,null,null,null,null,null,null,null,null,null,null,null,null,null,null,null,null,null,null,null,null,null,null,null,null,null,null,null,null,"Banheiro"]
[null,null,null,null,null,null,null,null,null,null,null,null,null,null,null,null,null,null,null,null,null,null,null,null,null,null,null,null,null,null,null,null,null,null,null,null,null,null,null,null,null,null,null,null,null,"Ricardo"]
[null,null,null,null,null,null,null,null,null,null,null,null,null,null,null,null,null,null,null,null,null,null,null,null,null,null,null,null,null,null,null,null,null,null,null,null,null,null,null,null,null,null,null,null,null,null,null,null,null,null,null,null,105,null,null,114,null,null,null,115,null,null,124,null,null,null,125]
[null,null,null,null,null,null,null,null,null,null,null,null,null,"Armários",null,null,null,null,null,null,null,null,null,null,null,null,null,null,null,null,null,null,null,null,null,null,null,null,null,null,null,null,null,null,null,"Ramal 4050"]
[null,null,null,null,null,null,null,null,null,null,null,null,null,null,null,null,null,null,null,null,null,null,null,null,null,null,null,null,null,null,null,null,null,null,null,null,null,null,null,null,null,null,null,null,null,null,null,null,null,null,null,null,106,null,null,113,null,null,null,116,null,null,123,null,null,null,126]
[null,null,null,null,null,null,null,null,null,null,null,null,null,null,null,null,null,null,null,null,null,null,null,null,null,null,null,null,null,null,null,"AR"]
[null,null,null,null,null,null,null,null,null,null,null,null,null,null,null,null,null,null,null,null,null,null,null,null,null,null,null,null,null,null,null,null,null,null,null,null,null,null,null,null,null,null,null,null,null,null,null,null,null,null,null,null,107,null,null,112,null,null,null,117,null,null,122,null,null,null,127]
[]
[null,null,null,null,null,null,null,null,null,null,null,null,null,null,null,null,null,null,null,null,null,null,null,null,null,null,null,null,null,null,null,null,null,null,null,null,null,null,null,null,null,null,null,null,null,"Alexandre",null,null,null,null,null,null,108,null,null,111,null,null,null,118,null,null,121,null,null,null,128]
[null,null,null,null,null,null,null,null,null,null,null,null,null,null,null,null,null,null,null,null,"COPA",null,null,null,null,null,null,null,null,null,null,null,null,null,null,null,null,null,112]
[null,null,null,null,null,null,"Escadas",null,null,null,null,"Banheiro",null,null,null,null,null,null,null,null,null,null,null,null,null,null,null,null,null,null,null,null,null,null,null,null,null,null,null,null,null,"Ramal 4005",null,null,null,null,null,null,null,null,null,null,109,null,null,110,null,null,null,119,null,null,120,null,null,null,129]
[null,null,null,null,null,null,null,null,null,null,null,null,null,null,null,null,null,null,null,null,null,null,null,null,null,null,null,null,null,null,null,null,null,null,null,null,null,"Renato",null,null,null,"Felipe",null,null,null,"Ramal 4020 e 4001"]
[null,null,null,null,null,null,null,null,null,null,null,null,null,null,null,null,null,null,null,null,null,null,null,null,null,null,null,null,null,null,null,null,null,null,null,null,null,null,"REDE"]
[]
[null,null,null,null,null,null,null,null,null,null,null,null,null,null,null,null,null,null,null,null,null,96,"Operação"]
[]
[null,null,null,null,null,null,null,null,null,null,null,null,null,null,null,null,null,null,null,null,null,null,null,null,null,"LÍVIA                ANGELA"]
[null,null,null,null,null,null,null,null,null,null,null,null,null,null,null,null,null,null,null,null,null,null,null,null,null,null,null,null,null,null,null,null,null,null,null,null,null,null,null,null,null,null,null,null,null,null,null,null,null,null,null,null,null,null,null,null,null,null,null,99,null,null,"99 posições de Operação"]
[null,null,null,null,null,null,null,null,null,null,null,null,null,null,null,null,null,null,null,null,null,null,null,null,null,null,null,null,null,null,null,null,null,null,null,null,null,null,null,null,null,null,null,null,null,null,null,null,null,null,null,null,null,null,null,null,null,null,null,3,null,null,"3 posições de BackOffice"]
[null,null,null,null,null,null,null,null,null,null,null,null,null,null,null,null,null,null,null,null,null,null,null,null,null,null,null,null,null,null,null,null,null,null,null,null,null,null,null,null,null,null,null,null,null,null,null,null,null,null,null,null,null,null,null,null,null,null,null,5,null,null,"5 posições de supervisor"]
[null,null,null,null,null,null,null,null,null,null,null,null,null,null,null,null,null,null,null,null,null,null,null,null,null,null,null,null,null,null,null,null,null,null,null,null,null,null,null,null,null,null,null,null,null,null,null,null,null,null,null,null,null,null,null,null,null,null,null,1,null,null,"1 posição na sala de multi uso"]
[null,null,null,null,null,null,null,null,null,null,null,null,null,null,null,null,null,null,null,null,null,null,null,null,null,null,null,null,null,null,null,null,null,null,null,null,null,null,null,null,null,null,null,null,null,null,null,null,null,null,null,null,null,null,null,null,null,null,null,1,null,null,"1 Posição na sala de feedback"]
[null,null,null,null,null,null,null,null,null,null,null,null,null,null,null,null,null,null,null,null,null,null,null,null,null,null,null,null,null,null,null,null,null,null,null,null,null,null,null,null,null,null,null,null,null,null,null,null,null,null,null,null,null,null,null,null,null,null,null,1,null,null,"1 Posição na sala de RH"]
[null,null,null,null,null,null,null,null,null,null,null,null,null,null,null,null,null,null,null,null,null,null,null,null,null,null,null,null,null,null,null,null,null,null,null,null,null,null,null,null,null,null,null,null,null,null,null,null,null,null,null,null,null,null,null,null,null,null,null,6,null,null,"6 Posições na sala administrativa"]
[null,null,null,null,null,null,null,null,null,null,null,null,null,null,null,null,null,null,null,null,null,null,null,null,null,null,null,null,null,null,null,null,null,null,null,null,null,null,null,null,null,null,null,null,null,null,null,null,null,null,null,null,null,null,null,null,null,null,null,null,null,null,"30 posições projetadas para o"]

{"sheet":"Informações","index":1,"n_rows":312,"n_cols":7,"rows_kept":312,"cut":false,"hidden":false,"merged":[]}
["PA","Patrimônio","Nome","IP","Setor","Usuário","SO"]
[1,null,null,null," ",null," "]
[2,null,null,null,null,null," "]
[3,null,null,null,null,null," "]
[4,null,null,null,null,null," "]
[5,null,null,null,null,null," "]
[6,null,null,null,null,null," "]
[7,null,null,null,null,null," "]
[8,null,null,null,null,null," "]
[9,null,null,null,null,null," "]
[10,null,null,null,null,null," "]
[11,null,null,null,null,null," "]
[12,null,null,null,null,null," "]
[13,null,null,null,null,null," "]
[14,null,null,null,null,null," "]
[15,null,null,null,null,null," "]
[16,null,null,null,null,null," "]
[17,null,null,null,null,null," "]
[18,null,null,null,null,null," "]
[19,null,null,null,null,null," "]
[20,null,null,null,null,null," "]
[21,null,null,null,null,null," "]
[22,null,null,null,null,null," "]
[23,null,null,null,null,null," "]
[24,null,null,null,null,null," "]
[25,null,null,null,null,null," "]
[26,null,null,null,null,null," "]
[27,null,null,null,null,null," "]
[28,null,null,null,null,null," "]
[29,null,null,null,null,null," "]
[30,null,null,null,null,null," "]
[31,null,null,null,null,null," "]
[32,null,null,null,null,null," "]
[33,null,null,null,null,null," "]
[34,null,null,null,null,null," "]
[35,null,null,null,null,null," "]
[36,null,null,null,null,null," "]
[37,null,null,null,null,null," "]
[38,null,null,null,null,null," "]
[39,null,null,null,null,null," "]
[40,null,null,null,null,null," "]
[41,null,null,null,null,null," "]
[42,null,null,null,null,null," "]
[43,null,null,null,null,null," "]
[44,null,null,null,null,null," "]
[45,null,null,null,null,null," "]
[46,null,null,null,null,null," "]
[]
[]
[]
[]
[]
[]
[]
[]
[]
[]
[]
[]
[]
[]
[]
[]
[]
[]
[]
[]
[]
[]
[]
[]
[]
[]
[]
[]
[]
[]
[]
[]
[]
[]
[]
[]
[]
[]
[]
[]
[]
[]
[]
[]
[]
[]
[]
[]
[]
[]
[]
[]
[]
[]
[]
[]
[]
[]
[]
[]
[]
[]
[]
[]
[]
[]
[]
[]
[]
[]
[]
[]
[]
[]
[]
[]
[]
[]
[]
[]
[]
[]
[]
[]
[]
[]
[]
[]
[]
[]
[]
[]
[]
[]
[]
[]
[]
[]
[]
[]
[]
[]
[]
[]
[]
[]
[]
[]
[]
[]
[]
[]
[]
[]
[]
[]
[]
[]
[]
[]
[]
[]
[]
[]
[]
[]
[]
[]
[]
[]
[]
[]
[]
[]
[]
[]
[]
[]
[]
[]
[]
[]
[]
[]
[]
[]
[]
[]
[]
[]
[]
[]
[]
[]
[]
[]
[]
[]
[]
[]
[]
[]
[]
[]
[]
[]
[]
[]
[]
[]
[]
[]
[]
[]
[]
[]
[]
[]
[]
[]
[]
[]
[]
[]
[]
[]
[]
[]
[]
[]
[]
[]
[]
[]
[]
[]
[]
[]
[]
[]
[]
[]
[]
[]
[]
[]
[]
[]
[]
[]
[]
[]
[]
[]
[]
[]
[]
[]
[]
[]
[]
[]
[]
[]
[]
[]
[]
[]
[]
[]
[]
[]
[]
[]
[]
[]
[]
[]
[]
[]
[]
[]
[]
[]
[]
[]
[]
[]
[]
[]
[]
[]
[null,"SETORES","SO"]
[null,"ADM","Windows 2000"]
[null,"ADM REDE","Windows XP"]
[null,"ASSISTENTES","Windows Vista"]
[null,"BRASIL BROKERS","Windows 7"]
[null,"CETELEM","Windows 8.1"]
[null,"CLARO PF","Windows 10"]
[null,"CLARO PJ"," "]
[null,"EMBRATEL"]
[null,"GERENCIA"]
[null,"LEADER"]
[null,"WHITE MARTINS"]
[null," "]

{"sheet":"Completo","index":2,"n_rows":38,"n_cols":79,"rows_kept":38,"cut":false,"hidden":false,"merged":[[17,0,17,2],[18,1,18,2],[19,1,19,2],[8,33,9,33],[9,37,10,37],[9,39,10,39],[4,33,5,33],[6,43,7,43],[7,39,8,39],[6,33,7,33],[7,35,8,35],[7,37,8,37],[10,1,10,3],[11,1,11,3],[12,1,12,3],[13,1,13,3],[14,1,14,3],[15,1,15,3],[10,6,11,8],[4,6,7,6],[4,1,4,2],[5,1,6,3],[4,24,5,24],[17,4,20,5],[16,19,17,21],[6,17,7,17],[6,21,7,21],[6,29,7,29],[7,24,8,24],[35,21,35,23],[33,19,33,20],[34,19,35,20],[16,16,18,17],[19,17,20,17],[12,24,13,24],[31,28,31,32],[10,31,11,31],[36,39,37,40],[36,47,37,47],[37,35,37,36],[36,51,37,51],[36,53,37,53],[36,55,37,55],[36,57,37,57],[32,51,33,51],[21,4,24,5],[25,4,28,5],[20,36,20,38],[20,42,20,44],[34,57,35,57],[16,29,17,29],[34,55,35,55],[34,25,34,26],[15,35,16,35],[20,31,21,31],[34,47,35,47],[34,51,35,51],[34,53,35,53],[32,47,33,47],[32,53,33,53],[30,34,31,35],[28,34,29,35],[28,47,29,47],[28,53,29,53],[28,55,29,55],[30,57,31,57],[30,39,31,40],[20,56,21,57],[10,33,11,33],[11,35,12,35],[18,42,19,44],[9,49,10,49],[9,35,10,35],[14,41,15,41],[8,43,9,43],[12,29,13,29],[12,41,13,41],[12,43,13,43],[16,31,17,31],[14,29,15,29],[14,31,15,31],[14,45,15,45],[16,41,17,41],[11,47,12,47],[16,33,17,33],[17,36,18,38],[15,47,16,47],[7,49,8,49],[8,31,9,31],[32,66,32,68],[13,49,14,49],[15,49,16,49],[17,49,18,49],[18,57,19,57],[19,59,20,59],[19,75,20,75],[13,73,14,73],[15,73,16,73],[17,71,18,71],[28,57,29,57],[32,55,33,55],[32,57,33,57],[28,51,29,51],[30,51,31,51],[28,59,29,59],[33,64,37,64],[34,59,35,59],[14,67,15,67],[36,59,37,59],[32,59,33,59],[13,63,14,63],[16,65,17,65],[15,75,16,75],[10,65,11,65],[9,63,10,63],[16,69,17,69],[24,77,25,77],[19,63,20,63],[21,72,22,74],[19,71,20,71],[22,77,23,77],[19,73,20,73],[20,77,21,77],[18,77,19,77],[14,65,15,65],[14,69,15,69],[13,75,14,75],[12,69,13,69],[12,67,13,67],[13,71,14,71],[17,75,18,75],[11,71,12,71],[16,77,17,77],[11,77,13,78],[11,75,12,75],[14,77,15,77],[20,69,21,69],[15,71,16,71],[16,55,17,55],[12,65,13,65],[13,59,14,59],[12,31,13,31],[12,33,13,33],[13,35,14,35],[13,37,14,37],[14,55,15,55],[15,51,16,51],[13,51,14,51],[16,53,17,53],[14,57,15,57],[12,55,13,55],[11,37,12,37],[11,39,12,39],[14,33,15,33],[10,57,11,57],[17,63,18,63],[15,63,16,63],[11,61,12,61],[9,61,10,61],[16,67,17,67],[18,65,19,65],[0,4,0,78],[4,17,5,17],[4,21,5,21],[4,29,5,29],[4,31,5,31],[9,47,10,47],[8,17,9,17],[8,21,9,21],[9,59,10,59],[5,35,6,35],[10,69,11,69],[11,73,12,73],[10,67,11,67],[5,37,6,37],[5,39,6,39],[6,41,7,41],[8,45,9,45],[6,31,7,31],[10,55,11,55],[11,51,12,51],[8,29,9,29],[9,51,10,51],[11,49,12,49],[10,29,11,29],[37,74,37,78],[26,34,27,35],[30,47,31,47],[6,45,7,45],[13,47,14,47],[8,41,9,41],[8,57,9,57],[36,70,37,70],[9,66,9,68],[7,52,7,53],[10,41,11,41],[10,43,11,43],[10,45,11,45],[12,45,13,45],[7,47,8,47],[7,51,8,51],[17,73,18,73],[10,53,11,53],[8,53,9,53],[8,55,9,55],[11,63,12,63],[12,57,13,57],[16,45,17,45],[17,47,18,47],[18,69,19,69],[15,37,16,37],[19,48,20,50],[30,53,31,53],[30,55,31,55],[19,61,20,61],[30,59,31,59],[15,39,16,39],[16,43,17,43],[14,43,15,43],[13,61,14,61],[13,39,14,39],[17,51,18,51],[18,54,20,55],[15,59,16,59],[17,61,18,61],[18,67,19,67],[16,57,17,57],[17,59,18,59],[20,66,22,68],[14,53,15,53],[12,53,13,53],[11,59,12,59],[15,61,16,61]]}
[null,null,null,null,"MAPEAMENTO DE ESTAÇÕES RIO 2016"]
[]
[]
[]
[null,"Legenda",null,null,null,null,"Televisão",null,null,null,null,null,null,null,null,null,null,"Jurídico","T",null,"T","Gerente",null,null,"Feedback","X",null,null,null,"vago",null,null,"C","Claro PF"]
["CT","Usuário",null,null,null,null,null,null,null,null,null,null,null,null,null,null,null,null,"VS",null,"XP",null,null,null,null,"X",null,null,null,null,null,null,"W10",null,null,"Claro PF","T",null,"X","Sem ponto"]
["W",null,null,null,null,null,null,null,null,null,null,null,null,null,null,null,null,"X","X",null,"XP","Caixa",null,null,null,null,null,null,null,"vago",null,null,"C","Claro PF",null,null,"W10",null,"X",null,null,"Leader","T",null,"T","Leader"]
[null,null,null,null,null,null,null,null,null,null,null,null,null,null,null,null,null,null,"X",null,"2K",null,null,"X","Credor",null,null,null,null,null,null,null,"W8",null,null,"Claro PF","T",null,null,"vago",null,null,null,null,"XP",null,null,"vago",null,null,"T","CCG/BBK/EST"]
[null,null,"Voz (talk ou Callflex)",null,null,null,null,null,null,null,null,null,null,null,null,null,null,"Vago","X",null,"T","Assist. adm",null,"X",null,null,null,null,null,"Claro PF","C",null,"C","Claro PF",null,null,null,null,null,null,null,"Leader","T",null,"T","Leader",null,null,null,null,null,null,null,"CCG/BBK/EST","T",null,"C","NET"]
[null,"Sistema Operacional",null,null,null,null,null,null,null,null,null,null,null,null,null,null,null,null,"XP",null,"XP",null,null,null,null,null,null,null,null,null,"W10",null,"W8",null,null,"Claro PF","T",null,"T","Leader",null,null,null,null,"A7",null,null,"vago",null,null,"T","CCG/BBK/EST",null,null,null,null,null,null,null,"NET","C",null,72,"vago",null,null,"Pilastra"]
["W7/W8","Máq. Nova",null,null,null,null,"Estante",null,null,null,null,null,null,null,null,null,null,null,null,null,null,null,null,null,null,null,null,null,null,"Claro PF","C",null,"T","Thais / Carol",null,null,null,null,"W10",null,null,"Leader","T",null,"T","Leader",null,null,null,null,null,null,null,"CCG/BBK/EST","T",null,"C","NET",null,null,null,null,null,null,null,"vago",82,null,"T","EBT"]
["A7","Máq.Antiga",null,null,null,null,null,null,null,null,null,null,null,null,null,null,null,null,null,null,null,null,null,null,null,null,null,null,null,null,"W10",null,"W10",null,null,"Claro PF","T",null,"T","Leader",null,null,null,null,"A7",null,null,"Leader","T",null,"T","CCG/BBK/EST",null,null,null,null,null,null,null,"NET","C",null,73,"vago",null,null,null,null,"W10",null,null,"Claro PJ","C",null,"C","Claro PJ",null,"Pilastra"]
["XP","Máq. Antiga",null,null,null,null,null,null,null,null,null,null,null,null,null,null,null,null,null,null,null,null,null,"X","Credor",null,null,null,null,"Claro PF","C",null,"C","Claro PF",null,null,null,null,"W10",null,null,"Leader","T",null,"T","Leader",null,null,null,null,null,null,null,"CCG/BBK/EST","T",null,"C","NET",null,null,null,null,null,null,null,"vago",81,null,"T","EBT",null,null,"W10",null,"W10"]
["N8","Note.Win 8",null,null,null,null,null,null,null,null,null,null,null,null,null,null,null,null,null,null,null,null,null,"A7",null,null,null,null,null,null,"W10",null,"W10",null,null,"Claro PF","T",null,"T","Leader",null,null,null,null,"A7",null,null,"Leader","T",null,"T","CCG/BBK/EST",null,null,null,null,null,null,null,"NET","C",null,74,"vago",null,null,null,null,"W10",null,null,"Claro PJ","C",null,"C","Claro PJ"]
["2K","Win 2000",null,null,null,null,null,null,null,null,null,null,null,null,null,null,null,null,null,null,null,null,null,null,null,null,null,null,null,"Claro PF","C",null,"C","Claro PF",null,null,null,null,null,null,null,"Leader","T",null,"T","Leader",null,null,null,null,null,null,null,"CCG/BBK/EST","T",null,"C","NET",null,null,null,null,null,null,null,"vago",80,null,"T","EBT",null,null,"W10",null,"W10",null,null,"Claro PJ","C"]
["VS","Win Vista",null,null,null,null,null,null,null,null,"BANHEIRO",null,null,null,null,null,null,null,null,null,null,null,null,null,null,null,null,null,null,null,"W10",null,"W10",null,null,"Claro PF","T",null,"T","Leader",null,null,null,null,"A7",null,null,"Leader","T",null,"T","CCG/BBK/EST",null,null,null,null,null,null,null,"NET","C",null,75,"vago",null,null,null,null,"W10",null,null,"Claro PJ","C",null,"C","Claro PJ",null,null,"W10"]
[null,null,null,null,null,null,null,null,null,null,null,null,null,null,null,null,"Almox.",null,"T","RH",null,null,null,null,null,null,null,null,null,"Claro PF","C",null,"C","Claro PF",null,null,null,null,null,null,null,"Leader","T",null,"T","Leader",null,null,null,null,null,null,null,"Fransine / Luana","T",null,"C","NET",null,null,null,null,null,null,null,"vago",79,null,"T","EBT",null,null,"W10",null,"W10",null,null,"Claro PJ","C"]
["Claro PF",null,null,null,"ELEVADOR 1",null,null,null,null,null,null,null,null,null,null,null,null,null,"XP",null,null,null,null,null,"X","Reunião",null,null,null,null,"W10",null,"W10",null,null,null,"Willian",null,null,null,null,null,null,null,"A7",null,null,"Cida / Paula","T",null,"T","CCG/BBK/EST",null,null,null,null,null,null,null,"NET","C",null,76,"vago",null,null,null,null,"W10",null,null,"Claro PJ","C",null,"C","Claro PJ",null,null,"W10"]
[null,"w 10",null,null,null,null,null,null,null,null,null,null,null,null,null,null,null,null,null,null,null,null,null,null,"X",null,null,null,null,null,null,null,null,null,null,null,null,null,null,null,null,null,"Arthur",null,null,null,null,null,null,null,null,null,null,null,"Pilastra",null,"C","NET",null,null,null,null,null,null,null,"vago",78,null,"T","EBT",null,null,"W10",null,"W10",null,null,"Claro PJ","C"]
[null,"antiga",null,null,null,null,null,null,null,null,null,null,null,null,null,null,"T","Recepcionista",null,null,null,null,null,null,null,null,null,null,null,null,null,null,null,null,null,null,null,null,null,null,null,null,null,null,null,null,null,null,"Clayton",null,null,null,null,null,null,null,null,null,null,"Wesley","T",null,77,"vago",null,null,null,null,"W10",null,null,"Claro PJ","C",null,null,"vago",null,null,"W10"]
[null,"PA","monitores",null,null,null,null,null,null,null,null,null,null,null,null,null,"A7",null,null,null,null,null,null,null,null,null,null,null,null,null,null,null,null,null,null,null,null,null,null,null,null,null,null,null,null,null,null,null,null,null,null,null,null,null,null,null,"Andrieli",null,null,null,null,null,null,null,null,null,"Pilastra",null,null,"A7",null,null,"W10",null,"W10",null,null,"Claro PJ","C"]
[null,null,null,null,"ELEVADOR 2",null,null,null,null,null,null,null,null,null,null,null,null,null,null,null,null,null,null,null,null,null,null,null,null,null,null,null,null,null,null,null,null,null,null,null,null,null,null,null,null,null,null,null,null,null,null,null,null,null,null,null,null,null,null,null,null,null,null,null,null,null,null,null,null,null,null,null,"Jonathan",null,null,null,null,null,"W10"]
[null,null,null,null,null,null,null,null,null,null,null,null,null,null,null,null,null,null,null,null,null,null,null,null,null,null,null,null,null,null,null,null,null,null,null,null,null,null,null,null,null,null,null,null,null,null,null,null,null,null,null,null,null,null,null,null,null,null,null,null,null,null,null,null,null,null,null,null,null,null,null,null,null,null,null,null,null,"Claro PJ","C"]
[null,null,null,null,null,null,null,"HALL DE ENTRADA",null,null,null,null,null,null,null,null,null,null,null,null,null,null,null,null,null,null,null,null,null,null,null,null,null,null,null,null,null,null,null,null,null,null,null,null,null,null,null,null,null,null,null,null,null,null,null,null,null,null,null,null,null,null,null,null,null,null,null,null,null,null,null,null,null,null,null,null,null,null,"W10"]
[null,null,null,null,null,null,null,null,null,null,null,null,null,null,null,null,null,null,null,null,null,null,null,null,null,null,null,null,null,null,null,null,null,null,null,null,null,null,null,null,null,null,null,null,null,null,null,null,null,null,null,null,null,null,null,null,null,null,null,null,null,null,null,null,null,null,null,null,null,null,null,null,null,null,null,null,null,"Jocilene","T"]
[null,null,null,null,"ELEVADOR 3",null,null,null,null,null,null,null,null,null,null,null,null,null,null,null,null,null,null,null,null,null,null,null,null,null,null,null,null,null,null,null,null,null,null,null,null,null,null,null,null,null,null,null,null,null,null,null,null,null,null,null,null,null,null,null,null,null,null,null,null,null,null,null,null,null,null,null,null,null,null,null,null,null,"W10"]
[null,null,null,null,null,null,null,null,null,null,null,null,null,null,null,null,null,null,null,null,null,null,null,null,null,null,null,null,null,null,null,null,null,null,3]
[]
[null,null,null,null,null,null,null,null,null,null,null,null,null,null,null,null,null,null,null,null,null,null,null,null,null,null,null,null,null,null,null,null,null,null,2,null,null,null,null,null,null,null,null,null,null,null,null,"Assistentes","X",21,"X","Sem ponto",null,"White Martins","T",null,"T","Débora",null,"White Martins","T"]
[null,null,null,null,null,null,null,null,null,null,null,null,null,null,null,null,null,null,null,null,null,null,null,null,null,null,null,null,null,null,null,null,null,null,null,null,null,null,null,null,null,null,null,null,null,null,null,null,"A7",null,"X",null,null,null,"W10",null,"W10",null,null,null,"W10"]
[null,null,null,null,null,null,null,null,null,null,null,null,null,null,null,"ARMARIOS",null,null,null,null,null,null,null,null,null,null,null,null,null,null,null,null,null,null,1,null,null,null,null,"Gerente",null,"T",null,null,null,null,null,"Assistentes","X",22,"X","Sem ponto",null,"White Martins","T",null,"T","White Martins",null,"White Martins","T"]
[null,null,null,null,null,null,null,null,null,"ESCADAS",null,null,null,null,null,null,null,null,null,null,null,null,null,null,null,null,null,null,"AR Central",null,null,null,null,null,null,null,null,null,null,null,null,"W10",null,null,null,null,null,null,"A7",null,"X",null,null,null,"W10",null,"W10",null,null,null,"W10"]
[null,null,null,null,null,null,null,null,null,null,null,null,null,null,null,null,null,null,null,null,null,null,null,null,null,null,null,null,null,null,null,null,null,null,null,null,null,null,null,null,null,null,null,null,null,null,null,"Assistentes","T",null,"X","Sem ponto",null,"White Martins","T",null,"T","White Martins",null,"White Martins","T",null,null,null,null,null,"Banheiro"]
[null,null,null,null,null,null,null,null,null,null,null,null,null,null,null,null,null,null,null,null,null,null,null,null,null,null,null,null,null,null,null,null,null,"XP",null,"A7",null,null,null,null,null,null,null,null,null,null,null,null,"W8",null,"X",null,null,null,"W10",null,"W10",null,null,null,"W10",null,null,null,"Bancada"]
[null,null,null,null,null,null,null,null,null,null,null,null,null,null,"BANHEIRO",null,null,null,null,null,null,null,null,null,null,"COPA",null,null,null,null,null,null,null,"Renato",null,"admrede",null,null,null,null,null,null,null,null,null,null,null,"Assistentes","T",null,"X","Sem ponto",null,"White Martins","T",null,"T","White Martins",null,"White Martins","T"]
[null,null,null,null,null,null,null,null,null,null,null,null,null,null,null,null,null,null,null,null,null,"PIA",null,null,null,null,null,null,null,null,null,null,null,null,null,null,null,null,null,null,null,null,null,null,null,null,null,null,"W7",null,"X",null,null,null,"W10",null,"W7",null,null,null,"W10"]
[null,null,null,null,null,null,null,null,null,null,null,null,null,null,null,null,null,null,null,null,null,null,null,null,null,null,null,null,null,null,null,null,null,null,null,null,null,null,null,"Gerente",null,"T",null,null,null,null,null,"Assistentes","T",null,"X","Assistentes",null,"White Martins","T",null,"T","White Martins",null,"White Martins","T",null,null,null,null,null,null,null,null,null,null,99]
[null,null,null,null,null,null,null,null,null,null,null,null,null,null,null,null,null,null,null,null,null,null,null,null,null,null,null,null,null,null,null,null,null,null,null,null,null,null,null,null,null,"W10",null,null,null,null,null,null,"W7",null,"A7",null,null,null,"W10",null,"W10",null,4,null,"W10",null,null,null,null,null,null,null,null,null,null,"A7",null,null,"Projeção"]

{"sheet":"Claro PF","index":3,"n_rows":22,"n_cols":16,"rows_kept":22,"cut":false,"hidden":false,"merged":[[18,10,19,10],[20,10,21,10],[8,10,9,10],[10,10,11,10],[12,10,13,10],[14,10,15,10],[16,10,17,10],[18,14,19,14],[20,15,21,17],[14,14,15,14],[16,14,17,14],[10,12,11,12],[20,8,21,8],[20,12,21,12],[8,14,9,14],[10,14,11,14],[12,14,13,14],[16,8,17,8],[16,12,17,12],[18,8,19,8],[18,12,19,12],[12,8,13,8],[12,12,13,12],[14,8,15,8],[14,12,15,12],[8,8,9,8],[8,12,9,12],[10,8,11,8]]}
[]
[]
[]
[]
[]
[]
[]
[]
[null,null,null,null,null,null,null,null,{"$f":"Completo!AD5","v":"vago"},{"$f":"Completo!AE5","v":0},null,{"$f":"Completo!AG5","v":"C"},{"$f":"Completo!AH5","v":"Claro PF"},null,{"$f":"Completo!AJ6","v":"Claro PF"},{"$f":"Completo!AK6","v":"T"}]
[null,null,null,null,null,null,null,null,null,{"$f":"Completo!AE6","v":0},null,{"$f":"Completo!AG6","v":"W10"},null,null,null,{"$f":"Completo!AK7","v":"W10"}]
[null,null,null,null,null,null,null,null,{"$f":"Completo!AD7","v":"vago"},{"$f":"Completo!AE7","v":0},null,{"$f":"Completo!AG7","v":"C"},{"$f":"Completo!AH7","v":"Claro PF"},null,{"$f":"Completo!AJ8","v":"Claro PF"},{"$f":"Completo!AK8","v":"T"}]
[null,null,null,null,null,null,null,null,null,{"$f":"Completo!AE8","v":0},null,{"$f":"Completo!AG8","v":"W8"},null,null,null,{"$f":"Completo!AK9","v":0}]
[null,null,null,null,null,null,null,null,{"$f":"Completo!AD9","v":"Claro PF"},{"$f":"Completo!AE9","v":"C"},null,{"$f":"Completo!AG9","v":"C"},{"$f":"Completo!AH9","v":"Claro PF"},null,{"$f":"Completo!AJ10","v":"Claro PF"},{"$f":"Completo!AK10","v":"T"}]
[null,null,null,null,null,null,null,null,null,{"$f":"Completo!AE10","v":"W10"},null,{"$f":"Completo!AG10","v":"W8"},null,null,null,{"$f":"Completo!AK11","v":0}]
[null,null,null,null,null,null,null,null,{"$f":"Completo!AD11","v":"Claro PF"},{"$f":"Completo!AE11","v":"C"},null,{"$f":"Completo!AG11","v":"T"},{"$f":"Completo!AH11","v":"Thais / Carol"},null,{"$f":"Completo!AJ12","v":"Claro PF"},{"$f":"Completo!AK12","v":"T"}]
[null,null,null,null,null,null,null,null,null,{"$f":"Completo!AE12","v":"W10"},null,{"$f":"Completo!AG12","v":"W10"},null,null,null,{"$f":"Completo!AK13","v":0}]
[null,null,null,null,null,null,null,null,{"$f":"Completo!AD13","v":"Claro PF"},{"$f":"Completo!AE13","v":"C"},null,{"$f":"Completo!AG13","v":"C"},{"$f":"Completo!AH13","v":"Claro PF"},null,{"$f":"Completo!AJ14","v":"Claro PF"},{"$f":"Completo!AK14","v":"T"}]
[null,null,null,null,null,null,null,null,null,{"$f":"Completo!AE14","v":"W10"},null,{"$f":"Completo!AG14","v":"W10"},null,null,null,{"$f":"Completo!AK15","v":0}]
[null,null,null,null,null,null,null,null,{"$f":"Completo!AD15","v":"Claro PF"},{"$f":"Completo!AE15","v":"C"},null,{"$f":"Completo!AG15","v":"C"},{"$f":"Completo!AH15","v":"Claro PF"},null,{"$f":"Completo!AJ16","v":"Claro PF"},{"$f":"Completo!AK16","v":"T"}]
[null,null,null,null,null,null,null,null,null,{"$f":"Completo!AE16","v":"W10"},null,{"$f":"Completo!AG16","v":"W10"},null,null,null,{"$f":"Completo!AK17","v":0}]
[null,null,null,null,null,null,null,null,{"$f":"Completo!AD17","v":"Claro PF"},{"$f":"Completo!AE17","v":"C"},null,{"$f":"Completo!AG17","v":"C"},{"$f":"Completo!AH17","v":"Claro PF"},null,null,{"$f":"Completo!AK18","v":"Willian"}]
[null,null,null,null,null,null,null,null,null,{"$f":"Completo!AE18","v":"W10"},null,{"$f":"Completo!AG18","v":"W10"}]

{"sheet":"Leader","index":4,"n_rows":13,"n_cols":11,"rows_kept":13,"cut":false,"hidden":false,"merged":[[10,1,11,1],[0,1,1,1],[2,1,3,1],[4,1,5,1],[6,1,7,1],[8,1,9,1],[0,3,1,3],[0,5,1,5],[0,7,1,7],[2,3,3,3],[2,5,3,5],[2,7,3,7],[4,3,5,3],[4,5,5,5],[4,7,5,7],[6,3,7,3],[6,5,7,5],[6,7,7,7],[8,3,9,3],[8,5,9,5],[8,7,9,7],[10,3,11,3],[10,5,11,5],[10,7,11,7],[12,4,13,6],[0,9,1,9],[2,9,3,9],[4,9,5,9],[6,9,7,9],[8,9,9,9],[10,9,11,9]]}
[{"$f":"Completo!AM6","v":"X"},{"$f":"Completo!AN6","v":"Sem ponto"},null,{"$f":"Completo!AP7","v":"Leader"},{"$f":"Completo!AQ7","v":"T"},null,{"$f":"Completo!AS7","v":"T"},{"$f":"Completo!AT7","v":"Leader"},null,{"$f":"Completo!AV8","v":"vago"},{"$f":"Completo!AW8","v":0}]
[{"$f":"Completo!AM7","v":"X"},null,null,null,{"$f":"Completo!AQ8","v":0},null,{"$f":"Completo!AS8","v":"XP"},null,null,null,{"$f":"Completo!AW9","v":0}]
[{"$f":"Completo!AM8","v":0},{"$f":"Completo!AN8","v":"vago"},null,{"$f":"Completo!AP9","v":"Leader"},{"$f":"Completo!AQ9","v":"T"},null,{"$f":"Completo!AS9","v":"T"},{"$f":"Completo!AT9","v":"Leader"},null,{"$f":"Completo!AV10","v":"vago"},{"$f":"Completo!AW10","v":0}]
[{"$f":"Completo!AM9","v":0},null,null,null,{"$f":"Completo!AQ10","v":0},null,{"$f":"Completo!AS10","v":"A7"},null,null,null,{"$f":"Completo!AW11","v":0}]
[{"$f":"Completo!AM10","v":"T"},{"$f":"Completo!AN10","v":"Leader"},null,{"$f":"Completo!AP11","v":"Leader"},{"$f":"Completo!AQ11","v":"T"},null,{"$f":"Completo!AS11","v":"T"},{"$f":"Completo!AT11","v":"Leader"},null,{"$f":"Completo!AV12","v":"Leader"},{"$f":"Completo!AW12","v":"T"}]
[{"$f":"Completo!AM11","v":"W10"},null,null,null,{"$f":"Completo!AQ12","v":0},null,{"$f":"Completo!AS12","v":"A7"},null,null,null,{"$f":"Completo!AW13","v":0}]
[{"$f":"Completo!AM12","v":"T"},{"$f":"Completo!AN12","v":"Leader"},null,{"$f":"Completo!AP13","v":"Leader"},{"$f":"Completo!AQ13","v":"T"},null,{"$f":"Completo!AS13","v":"T"},{"$f":"Completo!AT13","v":"Leader"},null,{"$f":"Completo!AV14","v":"Leader"},{"$f":"Completo!AW14","v":"T"}]
[{"$f":"Completo!AM13","v":"W10"},null,null,null,{"$f":"Completo!AQ14","v":0},null,{"$f":"Completo!AS14","v":"A7"},null,null,null,{"$f":"Completo!AW15","v":0}]
[{"$f":"Completo!AM14","v":"T"},{"$f":"Completo!AN14","v":"Leader"},null,{"$f":"Completo!AP15","v":"Leader"},{"$f":"Completo!AQ15","v":"T"},null,{"$f":"Completo!AS15","v":"T"},{"$f":"Completo!AT15","v":"Leader"},null,{"$f":"Completo!AV16","v":"Leader"},{"$f":"Completo!AW16","v":"T"}]
[{"$f":"Completo!AM15","v":0},null,null,null,{"$f":"Completo!AQ16","v":0},null,{"$f":"Completo!AS16","v":"A7"},null,null,null,{"$f":"Completo!AW17","v":0}]
[{"$f":"Completo!AM16","v":"T"},{"$f":"Completo!AN16","v":"Leader"},null,{"$f":"Completo!AP17","v":"Leader"},{"$f":"Completo!AQ17","v":"T"},null,{"$f":"Completo!AS17","v":"T"},{"$f":"Completo!AT17","v":"Leader"},null,{"$f":"Completo!AV18","v":"Cida / Paula"},{"$f":"Completo!AW18","v":"T"}]
[{"$f":"Completo!AM17","v":0},null,null,null,{"$f":"Completo!AQ18","v":0},null,{"$f":"Completo!AS18","v":"A7"},null,null,null,{"$f":"Completo!AW19","v":0}]
[null,null,null,null,{"$f":"Completo!AQ19","v":"Arthur"}]

{"sheet":"CCG-BBK-EST","index":5,"n_rows":13,"n_cols":6,"rows_kept":13,"cut":false,"hidden":false,"merged":[[12,0,13,1],[0,4,1,4],[2,4,3,4],[4,4,5,4],[6,4,7,4],[8,4,9,4],[0,2,1,2],[2,2,3,2],[4,2,5,2],[6,2,7,2],[8,2,9,2],[10,2,11,2]]}
[null,{"$f":"Completo!AY8","v":"T"},{"$f":"Completo!AZ8","v":"CCG/BBK/EST"},null,{"$f":"Completo!BB9","v":"CCG/BBK/EST"},{"$f":"Completo!BC9","v":"T"}]
[null,{"$f":"Completo!AY9","v":0},null,null,null,{"$f":"Completo!BC10","v":0}]
[null,{"$f":"Completo!AY10","v":"T"},{"$f":"Completo!AZ10","v":"CCG/BBK/EST"},null,{"$f":"Completo!BB11","v":"CCG/BBK/EST"},{"$f":"Completo!BC11","v":"T"}]
[null,{"$f":"Completo!AY11","v":0},null,null,null,{"$f":"Completo!BC12","v":0}]
[null,{"$f":"Completo!AY12","v":"T"},{"$f":"Completo!AZ12","v":"CCG/BBK/EST"},null,{"$f":"Completo!BB13","v":"CCG/BBK/EST"},{"$f":"Completo!BC13","v":"T"}]
[null,{"$f":"Completo!AY13","v":0},null,null,null,{"$f":"Completo!BC14","v":0}]
[null,{"$f":"Completo!AY14","v":"T"},{"$f":"Completo!AZ14","v":"CCG/BBK/EST"},null,{"$f":"Completo!BB15","v":"CCG/BBK/EST"},{"$f":"Completo!BC15","v":"T"}]
[null,{"$f":"Completo!AY15","v":0},null,null,null,{"$f":"Completo!BC16","v":0}]
[null,{"$f":"Completo!AY16","v":"T"},{"$f":"Completo!AZ16","v":"CCG/BBK/EST"},null,{"$f":"Completo!BB17","v":"Fransine / Luana"},{"$f":"Completo!BC17","v":"T"}]
[null,{"$f":"Completo!AY17","v":0},null,null,null,{"$f":"Completo!BC18","v":0}]
[null,{"$f":"Completo!AY18","v":"T"},{"$f":"Completo!AZ18","v":"CCG/BBK/EST"}]
[null,{"$f":"Completo!AY19","v":0}]
[{"$f":"Completo!AW20","v":"Clayton"}]

{"sheet":"NET","index":6,"n_rows":13,"n_cols":5,"rows_kept":13,"cut":false,"hidden":false,"merged":[[12,0,13,1],[0,3,1,3],[2,3,3,3],[4,3,5,3],[6,3,7,3],[8,3,9,3],[10,3,11,3],[0,1,1,1],[2,1,3,1],[4,1,5,1],[6,1,7,1],[8,1,9,1],[10,1,11,1]]}
[{"$f":"Completo!BE9","v":"C"},{"$f":"Completo!BF9","v":"NET"},null,{"$f":"Completo!BH10","v":"NET"},{"$f":"Completo!BI10","v":"C"}]
[{"$f":"Completo!BE10","v":0},null,null,null,{"$f":"Completo!BI11","v":0}]
[{"$f":"Completo!BE11","v":"C"},{"$f":"Completo!BF11","v":"NET"},null,{"$f":"Completo!BH12","v":"NET"},{"$f":"Completo!BI12","v":"C"}]
[{"$f":"Completo!BE12","v":0},null,null,null,{"$f":"Completo!BI13","v":0}]
[{"$f":"Completo!BE13","v":"C"},{"$f":"Completo!BF13","v":"NET"},null,{"$f":"Completo!BH14","v":"NET"},{"$f":"Completo!BI14","v":"C"}]
[{"$f":"Completo!BE14","v":0},null,null,null,{"$f":"Completo!BI15","v":0}]
[{"$f":"Completo!BE15","v":"C"},{"$f":"Completo!BF15","v":"NET"},null,{"$f":"Completo!BH16","v":"NET"},{"$f":"Completo!BI16","v":"C"}]
[{"$f":"Completo!BE16","v":0},null,null,null,{"$f":"Completo!BI17","v":0}]
[{"$f":"Completo!BE17","v":"C"},{"$f":"Completo!BF17","v":"NET"},null,{"$f":"Completo!BH18","v":"NET"},{"$f":"Completo!BI18","v":"C"}]
[{"$f":"Completo!BE18","v":0},null,null,null,{"$f":"Completo!BI19","v":0}]
[{"$f":"Completo!BE19","v":"C"},{"$f":"Completo!BF19","v":"NET"},null,{"$f":"Completo!BH20","v":"Wesley"},{"$f":"Completo!BI20","v":"T"}]
[{"$f":"Completo!BE20","v":0},null,null,null,{"$f":"Completo!BI21","v":0}]
[{"$f":"Completo!BE21","v":"Andrieli"}]

{"sheet":"Claro PJ","index":7,"n_rows":12,"n_cols":11,"rows_kept":12,"cut":false,"hidden":false,"merged":[[10,1,11,1],[0,1,1,1],[2,1,3,1],[4,1,5,1],[6,1,7,1],[8,1,9,1],[0,3,1,3],[0,5,1,5],[0,7,1,7],[2,3,3,3],[2,5,3,5],[2,7,3,7],[8,3,9,3],[8,5,9,5],[8,7,9,7],[10,4,11,6],[0,9,1,9],[2,9,3,9],[4,9,5,9],[6,9,7,9],[8,9,9,9],[10,9,11,9],[4,3,5,3],[4,5,5,5],[4,7,5,7],[6,3,7,3],[6,5,7,5],[6,7,7,7]]}
[{"$f":"Completo!BQ11","v":"T"},{"$f":"Completo!BR11","v":"EBT"},null,{"$f":"Completo!BT12","v":"Claro PJ"},{"$f":"Completo!BU12","v":"C"},null,{"$f":"Completo!BW12","v":"C"},{"$f":"Completo!BX12","v":"Claro PJ"},null,{"$f":"Completo!BZ15","v":"Claro PJ"},{"$f":"Completo!CA15","v":"C"}]
[{"$f":"Completo!BQ12","v":"W10"},null,null,null,{"$f":"Completo!BU13","v":"W10"},null,{"$f":"Completo!BW13","v":"W10"},null,null,null,{"$f":"Completo!CA16","v":"W10"}]
[{"$f":"Completo!BQ13","v":"T"},{"$f":"Completo!BR13","v":"EBT"},null,{"$f":"Completo!BT14","v":"Claro PJ"},{"$f":"Completo!BU14","v":"C"},null,{"$f":"Completo!BW14","v":"C"},{"$f":"Completo!BX14","v":"Claro PJ"},null,{"$f":"Completo!BZ17","v":"Claro PJ"},{"$f":"Completo!CA17","v":"C"}]
[{"$f":"Completo!BQ14","v":"W10"},null,null,null,{"$f":"Completo!BU15","v":"W10"},null,{"$f":"Completo!BW15","v":"W10"},null,null,null,{"$f":"Completo!CA18","v":"W10"}]
[{"$f":"Completo!BQ15","v":"T"},{"$f":"Completo!BR15","v":"EBT"},null,{"$f":"Completo!BT16","v":"Claro PJ"},{"$f":"Completo!BU16","v":"C"},null,{"$f":"Completo!BW16","v":"C"},{"$f":"Completo!BX16","v":"Claro PJ"},null,{"$f":"Completo!BZ19","v":"Claro PJ"},{"$f":"Completo!CA19","v":"C"}]
[{"$f":"Completo!BQ16","v":"W10"},null,null,null,{"$f":"Completo!BU17","v":"W10"},null,{"$f":"Completo!BW17","v":"W10"},null,null,null,{"$f":"Completo!CA20","v":"W10"}]
[{"$f":"Completo!BQ17","v":"T"},{"$f":"Completo!BR17","v":"EBT"},null,{"$f":"Completo!BT18","v":"Claro PJ"},{"$f":"Completo!BU18","v":"C"},null,{"$f":"Completo!BW18","v":"C"},{"$f":"Completo!BX18","v":"Claro PJ"},null,{"$f":"Completo!BZ21","v":"Claro PJ"},{"$f":"Completo!CA21","v":"C"}]
[{"$f":"Completo!BQ18","v":"W10"},null,null,null,{"$f":"Completo!BU19","v":"W10"},null,{"$f":"Completo!BW19","v":"W10"},null,null,null,{"$f":"Completo!CA22","v":"W10"}]
[{"$f":"Completo!BQ19","v":"T"},{"$f":"Completo!BR19","v":"EBT"},null,{"$f":"Completo!BT20","v":"Claro PJ"},{"$f":"Completo!BU20","v":"C"},null,{"$f":"Completo!BW20","v":0},{"$f":"Completo!BX20","v":"vago"},null,{"$f":"Completo!BZ23","v":"Claro PJ"},{"$f":"Completo!CA23","v":"C"}]
[{"$f":"Completo!BQ20","v":"W10"},null,null,null,{"$f":"Completo!BU21","v":"W10"},null,{"$f":"Completo!BW21","v":"W10"},null,null,null,{"$f":"Completo!CA24","v":"W10"}]
[null,"A7",null,null,{"$f":"Completo!BU22","v":"Jonathan"},null,null,null,null,{"$f":"Completo!BZ25","v":"Jocilene"},{"$f":"Completo!CA25","v":"T"}]
[null,null,null,null,null,null,null,null,null,null,{"$f":"Completo!CA26","v":"W10"}]

{"sheet":"White Martins","index":8,"n_rows":10,"n_cols":8,"rows_kept":10,"cut":false,"hidden":false,"merged":[[0,4,1,4],[2,0,3,0],[2,2,3,2],[2,4,3,4],[8,0,9,0],[8,2,9,2],[8,4,9,4],[4,0,5,0],[4,2,5,2],[4,4,5,4],[6,0,7,0],[6,2,7,2],[6,4,7,4],[0,0,1,0],[0,2,1,2],[0,6,1,6],[2,6,3,6],[4,6,5,6],[6,6,7,6],[8,6,9,6]]}
[{"$f":"Completo!BB29","v":"White Martins"},{"$f":"Completo!BC29","v":"T"},null,{"$f":"Completo!BE29","v":"T"},{"$f":"Completo!BF29","v":"Débora"},null,{"$f":"Completo!BH29","v":"White Martins"},{"$f":"Completo!BI29","v":"T"}]
[null,{"$f":"Completo!BC30","v":"W10"},null,{"$f":"Completo!BE30","v":"W10"},null,null,null,{"$f":"Completo!BI30","v":"W10"}]
[{"$f":"Completo!BB31","v":"White Martins"},{"$f":"Completo!BC31","v":"T"},null,{"$f":"Completo!BE31","v":"T"},{"$f":"Completo!BF31","v":"White Martins"},null,{"$f":"Completo!BH31","v":"White Martins"},{"$f":"Completo!BI31","v":"T"}]
[null,{"$f":"Completo!BC32","v":"W10"},null,{"$f":"Completo!BE32","v":"W10"},null,null,null,{"$f":"Completo!BI32","v":"W10"}]
[{"$f":"Completo!BB33","v":"White Martins"},{"$f":"Completo!BC33","v":"T"},null,{"$f":"Completo!BE33","v":"T"},{"$f":"Completo!BF33","v":"White Martins"},null,{"$f":"Completo!BH33","v":"White Martins"},{"$f":"Completo!BI33","v":"T"}]
[null,{"$f":"Completo!BC34","v":"W10"},null,{"$f":"Completo!BE34","v":"W10"},null,null,null,{"$f":"Completo!BI34","v":"W10"}]
[{"$f":"Completo!BB35","v":"White Martins"},{"$f":"Completo!BC35","v":"T"},null,{"$f":"Completo!BE35","v":"T"},{"$f":"Completo!BF35","v":"White Martins"},null,{"$f":"Completo!BH35","v":"White Martins"},{"$f":"Completo!BI35","v":"T"}]
[null,{"$f":"Completo!BC36","v":"W10"},null,{"$f":"Completo!BE36","v":"W7"},null,null,null,{"$f":"Completo!BI36","v":"W10"}]
[{"$f":"Completo!BB37","v":"White Martins"},{"$f":"Completo!BC37","v":"T"},null,{"$f":"Completo!BE37","v":"T"},{"$f":"Completo!BF37","v":"White Martins"},null,{"$f":"Completo!BH37","v":"White Martins"},{"$f":"Completo!BI37","v":"T"}]
[null,{"$f":"Completo!BC38","v":"W10"},null,{"$f":"Completo!BE38","v":"W10"},null,null,null,{"$f":"Completo!BI38","v":"W10"}]

{"sheet":"Controle","index":9,"n_rows":12,"n_cols":2,"rows_kept":12,"cut":false,"hidden":true,"merged":[]}
["SETORES","SO"]
["ADM","Windows 2000"]
["ADM REDE","Windows XP"]
["ASSISTENTES","Windows Vista"]
["BRASIL BROKERS","Windows 7"]
["CETELEM","Windows 8.1"]
["CLARO PF","Windows 10"]
["CLARO PJ"]
["EMBRATEL"]
["GERENCIA"]
["LEADER"]
["WHITE MARTINS"]